bitfinex-derivatives/quotes_BTCF0:USTF0_20250514
["timestamp","ask_amount","ask_price","bid_price","bid_amount"]
[1747225029635,0.22720022,104200.0,104190.0,2.51717887]
[1747225029834,0.22820022,104200.0,104190.0,2.51717887]
[1747225030324,0.22820022,104200.0,104190.0,2.36653113]
[1747225030528,0.22420022,104200.0,104190.0,2.67968589]
[1747225030728,0.22520022,104200.0,104190.0,2.67968589]
[1747225031433,0.22520022,104200.0,104190.0,2.56163815]
[1747225031640,0.22520022,104200.0,104190.0,2.64798589]
[1747225032427,0.41712912,104200.0,104190.0,2.64798589]
[1747225032942,0.41712912,104200.0,104190.0,2.16913815]
[1747225033141,0.41712912,104200.0,104190.0,2.28718589]
[1747225034332,0.41712912,104200.0,104190.0,2.09207887]
[1747225036241,0.41712912,104200.0,104190.0,2.45287887]
[1747225036242,0.22520022,104200.0,104190.0,2.45287887]
[1747225036539,0.22520022,104200.0,104190.0,2.51517887]
[1747225036741,0.22520022,104200.0,104190.0,1.01517887]
[1747225037338,0.22520022,104200.0,104190.0,2.67717887]
[1747225038031,0.22520022,104200.0,104190.0,2.70807887]
[1747225038743,0.22520022,104200.0,104190.0,2.56197814]
[1747225039035,0.12780022,104200.0,104190.0,2.56197814]
[1747225039238,0.02634164,104210.0,104200.0,0.1919289]
[1747225039444,0.05874164,104210.0,104200.0,0.77187664]
[1747225039740,0.12174164,104210.0,104200.0,0.77187664]
[1747225039942,0.12174164,104210.0,104200.0,2.36785053]
[1747225040344,0.12374164,104210.0,104200.0,2.36785053]
[1747225041031,0.12674164,104210.0,104200.0,2.36785053]
[1747225041637,0.12674164,104210.0,104200.0,2.32785053]
[1747225041938,0.12674164,104210.0,104200.0,2.36785053]
[1747225042144,0.12674164,104210.0,104200.0,2.51395126]
[1747225042442,0.06374164,104210.0,104200.0,2.51395126]
[1747225043243,0.06374164,104210.0,104200.0,2.67595126]
[1747225043843,0.09484164,104210.0,104200.0,2.67595126]
[1747225044042,0.03134164,104210.0,104200.0,2.67595126]
[1747225044238,0.03134164,104210.0,104200.0,2.36550352]
[1747225044437,0.09394164,104210.0,104200.0,2.51645126]
[1747225045439,0.09094164,104210.0,104200.0,2.51645126]
[1747225047741,0.05984164,104210.0,104200.0,2.51645126]
[1747225051350,0.09154164,104210.0,104200.0,2.51645126]
[1747225051743,0.09154164,104210.0,104200.0,2.39840352]
[1747225052046,0.09154164,104210.0,104200.0,2.51645126]
[1747225052233,0.02517241,104210.0,104200.0,1.01645126]
[1747225052436,0.02300894,104230.0,104220.0,0.1918921]
[1747225052637,0.05470894,104230.0,104220.0,0.71073984]
[1747225052952,0.05470894,104230.0,104220.0,2.1536921]
[1747225053245,0.05470894,104230.0,104220.0,2.33700452]
[1747225053651,0.05570894,104230.0,104220.0,2.17895678]
[1747225053842,0.05570894,104230.0,104220.0,2.26670452]
[1747225054040,0.24858264,104230.0,104220.0,1.82785678]
[1747225054244,0.2398858,104220.0,104200.0,1.00690073]
[1747225054445,0.7281398,104220.0,104210.0,0.1919095]
[1747225054643,0.3673398,104220.0,104210.0,0.1919095]
[1747225055033,0.1919105,104210.0,104200.0,0.94414566]
[1747225055240,0.2234105,104210.0,104200.0,0.42703592]
[1747225055448,0.2234105,104210.0,104200.0,0.38703592]
[1747225055641,0.2234105,104210.0,104200.0,0.3310717]
[1747225055838,0.5842105,104210.0,104200.0,0.4830006]
[1747225056438,0.5842105,104210.0,104200.0,0.5260006]
[1747225056948,0.5842105,104210.0,104200.0,0.4860006]
[1747225057150,0.2234105,104210.0,104200.0,0.4860006]
[1747225057343,0.2234105,104210.0,104200.0,0.4880006]
[1747225057645,0.2234105,104210.0,104200.0,0.5280006]
[1747225057950,0.2234105,104210.0,104200.0,0.4880006]
[1747225058549,0.2234105,104210.0,104200.0,0.29289358]
[1747225058753,0.2234105,104210.0,104200.0,0.33289358]
[1747225058947,0.2234105,104210.0,104200.0,0.29289358]
[1747225059459,0.5842105,104210.0,104200.0,0.29289358]
[1747225061046,0.5842105,104210.0,104200.0,0.33289358]
[1747225061248,0.5842105,104210.0,104200.0,0.41094132]
[1747225061453,0.2234105,104210.0,104200.0,0.41094132]
[1747225063252,0.5842105,104210.0,104200.0,0.45094132]
[1747225063549,0.5842105,104210.0,104200.0,0.41094132]
[1747225063959,0.2234105,104210.0,104200.0,0.41094132]
[1747225064249,0.5842105,104210.0,104200.0,0.41094132]
[1747225065152,0.5842105,104210.0,104200.0,0.29289358]
[1747225065549,0.5842105,104210.0,104200.0,0.41094132]
[1747225066244,0.6169105,104210.0,104200.0,0.41094132]
[1747225066940,0.6169105,104210.0,104200.0,0.45094132]
[1747225067146,0.6169105,104210.0,104200.0,0.41094132]
[1747225067454,0.6169105,104210.0,104200.0,0.45094132]
[1747225067651,0.6169105,104210.0,104200.0,0.41094132]
[1747225068447,0.6169105,104210.0,104200.0,0.45094132]
[1747225068652,0.6169105,104210.0,104200.0,0.41094132]
[1747225069257,0.6169105,104210.0,104200.0,0.29289358]
[1747225069444,0.73495824,104210.0,104200.0,0.10096468]
[1747225069642,0.6169105,104210.0,104200.0,0.29289358]
[1747225070262,0.73495824,104210.0,104200.0,0.10096468]
[1747225071151,0.73495824,104210.0,104200.0,0.29289358]
[1747225071651,0.76575824,104210.0,104200.0,0.29289358]
[1747225072155,0.6477105,104210.0,104200.0,0.29289358]
[1747225078757,0.76575824,104210.0,104200.0,0.10096468]
[1747225079461,0.1919289,104200.0,104190.0,0.00191948]
[1747225079757,0.73477664,104200.0,104190.0,0.09788416]
[1747225079963,0.83074864,104200.0,104190.0,0.09788416]
[1747225080354,0.1919658,104180.0,104170.0,0.36087338]
[1747225080548,0.67081354,104180.0,104170.0,0.36087338]
[1747225080754,0.6167658,104180.0,104170.0,0.36087338]
[1747225080953,0.6167658,104180.0,104170.0,0.45684727]
[1747225081357,0.6167658,104180.0,104170.0,0.57489501]
[1747225081557,0.6167658,104180.0,104170.0,0.61439501]
[1747225081753,0.6167658,104180.0,104170.0,0.49634727]
[1747225082565,0.6167658,104180.0,104170.0,0.50334727]
[1747225082752,0.6167658,104180.0,104170.0,0.54334727]
[1747225082956,0.6167658,104180.0,104170.0,0.50334727]
[1747225083458,0.6167658,104180.0,104170.0,0.45535237]
[1747225084652,0.6167658,104180.0,104170.0,0.36674259]
[1747225084856,0.6167658,104180.0,104170.0,0.40674259]
[1747225085061,0.6167658,104180.0,104170.0,0.36674259]
[1747225085965,0.83080554,104180.0,104170.0,0.11097389]
[1747225086167,1.19160554,104180.0,104170.0,0.11097389]
[1747225086970,1.19160554,104180.0,104170.0,0.10297389]
[1747225087364,1.19160554,104180.0,104170.0,0.29495809]
[1747225087559,1.19160554,104180.0,104170.0,0.28795809]
[1747225089173,1.19160554,104180.0,104170.0,0.09597389]
[1747225095775,1.09561354,104180.0,104170.0,0.09597389]
[1747225096573,1.19160554,104180.0,104170.0,0.09597389]
[1747225096770,1.19160554,104180.0,104170.0,9e-08]
[1747225096983,1.19160554,104180.0,104150.0,0.03596035]
[1747225096984,0.1920026,104160.0,104150.0,0.03596035]
[1747225097167,1.03165034,104160.0,104150.0,0.03596035]
[1747225097367,1.09705034,104160.0,104150.0,0.13195267]
[1747225097568,0.9790026,104160.0,104150.0,0.13195267]
[1747225097868,0.9790026,104160.0,104150.0,0.36397377]
[1747225098073,0.9790026,104160.0,104150.0,0.39497377]
[1747225098273,0.6182026,104160.0,104150.0,0.48102151]
[1747225098575,0.2574026,104160.0,104150.0,0.48102151]
[1747225098875,0.2574026,104160.0,104150.0,0.52102151]
[1747225099070,0.2574026,104160.0,104150.0,0.48102151]
[1747225099573,0.2574026,104160.0,104150.0,0.52102151]
[1747225099774,0.2574026,104160.0,104150.0,0.48102151]
[1747225100178,0.2574026,104160.0,104150.0,0.52102151]
[1747225100475,0.2574026,104160.0,104150.0,0.48102151]
[1747225101381,0.2574026,104160.0,104150.0,0.52102151]
[1747225101567,0.2574026,104160.0,104150.0,0.48102151]
[1747225101762,0.2574026,104160.0,104150.0,0.52102151]
[1747225101967,0.2574026,104160.0,104150.0,0.48102151]
[1747225102365,0.2574026,104160.0,104150.0,0.52102151]
[1747225102570,0.6182026,104160.0,104150.0,0.48102151]
[1747225102766,0.6182026,104160.0,104150.0,0.36297377]
[1747225103077,0.2574026,104160.0,104150.0,0.36297377]
[1747225103279,0.6182026,104160.0,104150.0,0.36297377]
[1747225103469,0.2574026,104160.0,104150.0,0.40297377]
[1747225103775,0.2574026,104160.0,104150.0,0.36297377]
[1747225104367,0.2574026,104160.0,104150.0,0.40297377]
[1747225104569,0.2574026,104160.0,104150.0,0.36297377]
[1747225105469,0.6182026,104160.0,104150.0,0.36297377]
[1747225105671,0.2574026,104160.0,104150.0,0.36297377]
[1747225107079,0.6182026,104160.0,104150.0,0.36297377]
[1747225107479,0.2574026,104160.0,104150.0,0.36297377]
[1747225110581,0.2574026,104160.0,104150.0,0.22279611]
[1747225110782,0.2574026,104160.0,104150.0,0.35880686]
[1747225110979,0.2574026,104160.0,104150.0,0.31880686]
[1747225111372,0.2594026,104160.0,104150.0,0.31880686]
[1747225111573,0.6202026,104160.0,104150.0,0.31880686]
[1747225111779,0.2594026,104160.0,104150.0,0.31880686]
[1747225112685,0.2594026,104160.0,104150.0,0.35880686]
[1747225112878,0.2594026,104160.0,104150.0,0.31880686]
[1747225113877,0.2594026,104160.0,104150.0,0.35190686]
[1747225116486,0.2594026,104160.0,104150.0,0.39190686]
[1747225116677,0.2594026,104160.0,104150.0,0.35190686]
[1747225117384,0.6202026,104160.0,104150.0,0.35190686]
[1747225117578,0.2594026,104160.0,104150.0,0.35190686]
[1747225117779,0.6202026,104160.0,104150.0,0.35190686]
[1747225120985,0.2594026,104160.0,104150.0,0.39190686]
[1747225121189,0.2594026,104160.0,104150.0,0.35190686]
[1747225121498,0.6202026,104160.0,104150.0,0.35190686]
[1747225121789,0.69767469,104160.0,104150.0,0.32913185]
[1747225121988,0.69767469,104160.0,104150.0,0.10401075]
[1747225123184,0.77514678,104160.0,104150.0,0.10401075]
[1747225123589,0.69767469,104160.0,104150.0,0.10401075]
[1747225125292,0.6202026,104160.0,104150.0,0.10401075]
[1747225125585,0.69767469,104160.0,104150.0,0.10401075]
[1747225125791,0.77514678,104160.0,104150.0,0.10401075]
[1747225126882,0.77514678,104160.0,104150.0,0.29603185]
[1747225127386,0.77514678,104160.0,104150.0,0.10401075]
[1747225128493,0.87115878,104160.0,104150.0,0.10401075]
[1747225129492,0.77514678,104160.0,104150.0,0.10401075]
[1747225129690,0.87115878,104160.0,104150.0,0.10401075]
[1747225130493,0.77514678,104160.0,104150.0,0.10401075]
[1747225139195,0.80694678,104160.0,104150.0,0.10401075]
[1747225140396,0.6520026,104160.0,104150.0,0.10401075]
[1747225140698,0.72947469,104160.0,104150.0,0.10401075]
[1747225140895,0.72947469,104160.0,104150.0,0.29603185]
[1747225141691,0.72947469,104160.0,104150.0,0.32793185]
[1747225146000,0.72947469,104160.0,104150.0,0.10401075]
[1747225147798,0.72947469,104160.0,104150.0,0.29603185]
[1747225148492,0.72947469,104160.0,104150.0,0.32853185]
[1747225150309,0.6520026,104160.0,104150.0,0.32853185]
[1747225150603,0.72947469,104160.0,104150.0,0.32853185]
[1747225152508,0.72947469,104160.0,104150.0,0.13651075]
[1747225152898,0.6520026,104160.0,104150.0,0.13651075]
[1747225153100,0.72947469,104160.0,104150.0,0.13651075]
[1747225157309,0.6520026,104160.0,104150.0,0.32853185]
[1747225157511,0.72947469,104160.0,104150.0,0.32853185]
[1747225159610,0.72947469,104160.0,104150.0,0.13651075]
[1747225161015,1.09027469,104160.0,104150.0,0.13651075]
[1747225163613,1.09027469,104160.0,104150.0,0.10401075]
[1747225168418,0.36867469,104160.0,104150.0,0.10401075]
[1747225168618,1.09027469,104160.0,104150.0,0.10401075]
[1747225170923,1.0128026,104160.0,104150.0,0.10401075]
[1747225171220,1.09027469,104160.0,104150.0,0.10401075]
[1747225172516,1.09027469,104160.0,104150.0,0.13421075]
[1747225176718,1.09027469,104160.0,104150.0,0.10401075]
[1747225179821,1.0128026,104160.0,104150.0,0.37350394]
[1747225180124,1.0128026,104160.0,104150.0,0.56700394]
[1747225180325,1.0128026,104160.0,104150.0,0.59990394]
[1747225180529,1.0128026,104160.0,104150.0,2.13030394]
[1747225180827,1.0128026,104160.0,104150.0,2.05283185]
[1747225186228,1.0128026,104160.0,104150.0,1.89083185]
[1747225187325,1.0128026,104160.0,104150.0,2.05283185]
[1747225188227,1.0128026,104160.0,104150.0,1.89083185]
[1747225195739,1.09027469,104160.0,104150.0,1.89083185]
[1747225196136,1.0128026,104160.0,104150.0,1.89083185]
[1747225199430,0.2912026,104160.0,104150.0,1.89083185]
[1747225199832,0.72947469,104160.0,104150.0,1.89083185]
[1747225200025,0.6520026,104160.0,104150.0,1.86043185]
[1747225200232,0.72947469,104160.0,104150.0,1.86043185]
[1747225200432,0.72947469,104160.0,104150.0,1.60401075]
[1747225200433,0.80694678,104160.0,104150.0,1.60401075]
[1747225200640,0.72947469,104160.0,104150.0,1.60401075]
[1747225201442,0.72947469,104160.0,104150.0,1.79603185]
[1747225201832,0.6520026,104160.0,104150.0,1.89713185]
[1747225202031,0.6520026,104160.0,104150.0,1.85713185]
[1747225205244,0.72947469,104160.0,104150.0,1.82623185]
[1747225206039,0.2261026,104160.0,104150.0,1.99097603]
[1747225206239,0.2261026,104160.0,104150.0,2.36170394]
[1747225206442,0.0341,104160.0,104150.0,2.37170394]
[1747225206643,0.2261026,104160.0,104150.0,2.37170394]
[1747225207142,0.2886026,104160.0,104150.0,0.99370394]
[1747225207546,0.2886026,104160.0,104150.0,2.49370394]
[1747225208138,0.2886026,104160.0,104150.0,2.53370394]
[1747225208445,0.2886026,104160.0,104150.0,2.49370394]
[1747225209143,0.2886026,104160.0,104150.0,2.41623185]
[1747225209351,0.2583026,104160.0,104150.0,2.53370394]
[1747225209556,0.2583026,104160.0,104150.0,2.49370394]
[1747225209948,0.2583026,104160.0,104150.0,2.53370394]
[1747225210142,0.0663,104160.0,104150.0,2.49370394]
[1747225210340,0.0341,104160.0,104150.0,2.52370394]
[1747225210750,0.002,104160.0,104150.0,2.52370394]
[1747225211753,0.0335,104160.0,104150.0,2.52370394]
[1747225215647,0.0335,104160.0,104150.0,2.67013679]
[1747225216049,0.0335,104160.0,104150.0,2.2418647]
[1747225216050,0.33567469,104160.0,104150.0,2.2418647]
[1747225216249,0.2912026,104160.0,104150.0,2.0798647]
[1747225216450,0.2912026,104160.0,104150.0,1.89343185]
[1747225217557,0.2912026,104160.0,104150.0,1.93343185]
[1747225217748,0.2912026,104160.0,104150.0,1.89343185]
[1747225219254,0.2912026,104160.0,104150.0,2.01090394]
[1747225219658,0.2912026,104160.0,104150.0,1.97090394]
[1747225219957,0.2912026,104160.0,104150.0,1.89343185]
[1747225220558,0.2912026,104160.0,104150.0,1.93343185]
[1747225220859,0.2912026,104160.0,104150.0,1.82813185]
[1747225221964,0.2912026,104160.0,104150.0,1.86813185]
[1747225222147,0.2912026,104160.0,104150.0,1.82813185]
[1747225222351,0.2912026,104160.0,104150.0,1.86093185]
[1747225223762,0.36867469,104160.0,104150.0,1.86093185]
[1747225224057,0.72947469,104160.0,104150.0,1.79603185]
[1747225225861,0.80694678,104160.0,104150.0,0.10401075]
[1747225226962,0.1920211,104150.0,104140.0,1.66925454]
[1747225227159,0.70776528,104150.0,104140.0,1.66925454]
[1747225227358,0.63029319,104150.0,104140.0,1.66925454]
[1747225227559,0.63029319,104150.0,104140.0,1.74212599]
[1747225228163,0.63029319,104150.0,104140.0,1.74712599]
[1747225228562,0.63029319,104150.0,104140.0,1.74812599]
[1747225228957,0.63029319,104150.0,104140.0,1.74512599]
[1747225229156,0.63029319,104150.0,104140.0,0.24512599]
[1747225229564,0.63029319,104150.0,104140.0,0.09901075]
[1747225229951,0.72679319,104150.0,104140.0,0.09901075]
[1747225234456,0.72679319,104150.0,104140.0,0.003]
[1747225240566,0.6493211,104150.0,104140.0,0.003]
[1747225240772,0.72679319,104150.0,104140.0,0.003]
[1747225242270,0.72679319,104150.0,104140.0,0.0029]
[1747225246676,1.08759319,104150.0,104140.0,0.0029]
[1747225250271,0.1920395,104140.0,104130.0,0.03096029]
[1747225250476,0.1920395,104140.0,104130.0,0.00096029]
[1747225250477,0.80478368,104140.0,104130.0,0.00096029]
[1747225250675,0.80478368,104140.0,104130.0,0.09698026]
[1747225250873,0.80478368,104140.0,104130.0,0.00096029]
[1747225251380,0.80478368,104140.0,104130.0,0.00296029]
[1747225251776,0.80478368,104140.0,104130.0,0.00496029]
[1747225254584,0.6498395,104140.0,104130.0,0.00496029]
[1747225254881,0.80478368,104140.0,104130.0,0.00496029]
[1747225255079,0.80478368,104140.0,104130.0,0.03816029]
[1747225255886,0.1920579,104130.0,104120.0,1.75965178]
[1747225256082,0.72262999,104130.0,104120.0,1.75965178]
[1747225256285,0.72262999,104130.0,104120.0,1.85568097]
[1747225257186,0.72262999,104130.0,104120.0,1.85868097]
[1747225257380,0.72262999,104130.0,104120.0,1.86168097]
[1747225258379,0.6451579,104130.0,104120.0,1.86168097]
[1747225258581,0.6451579,104130.0,104120.0,1.87631484]
[1747225258880,0.6451579,104130.0,104120.0,1.95378693]
[1747225259184,0.6451579,104130.0,104120.0,2.03118693]
[1747225260786,0.6451579,104130.0,104120.0,1.95371484]
[1747225262689,0.6451579,104130.0,104120.0,1.90569604]
[1747225263184,0.72262999,104130.0,104120.0,1.90569604]
[1747225268299,0.72262999,104130.0,104120.0,1.89029604]
[1747225268781,0.6451579,104130.0,104120.0,1.90569604]
[1747225268983,0.72262999,104130.0,104120.0,1.90569604]
[1747225269184,0.72262999,104130.0,104120.0,1.74630452]
[1747225269385,0.72262999,104130.0,104120.0,1.93837382]
[1747225270983,0.6451579,104130.0,104120.0,1.93837382]
[1747225271293,0.72262999,104130.0,104120.0,1.93837382]
[1747225275091,0.72262999,104130.0,104120.0,1.90243141]
[1747225275290,0.72262999,104130.0,104120.0,1.66436211]
[1747225275888,0.72262999,104130.0,104120.0,1.85643851]
[1747225276194,0.72262999,104130.0,104120.0,1.66436211]
[1747225276395,0.72262999,104130.0,104120.0,1.85643851]
[1747225276691,0.72262999,104130.0,104120.0,1.64806306]
[1747225276886,0.72262999,104130.0,104120.0,0.11666306]
[1747225278099,0.72262999,104130.0,104120.0,0.02063387]
[1747225278300,0.72262999,104130.0,104120.0,0.05113387]
[1747225278595,0.72262999,104130.0,104120.0,0.14717228]
[1747225280294,0.72262999,104130.0,104120.0,0.11667228]
[1747225280494,0.72262999,104130.0,104120.0,0.006]
[1747225280495,0.80010208,104130.0,104120.0,0.006]
[1747225280801,0.82010208,104130.0,104120.0,1e-07]
[1747225280990,1.09010208,104130.0,104120.0,1e-07]
[1747225282100,0.1920764,104120.0,104110.0,0.00192095]
[1747225282298,0.80202058,104120.0,104110.0,0.00192095]
[1747225282502,0.80202058,104120.0,104110.0,0.09795936]
[1747225282999,0.80202058,104120.0,104110.0,0.11265788]
[1747225283495,0.80202058,104120.0,104110.0,0.00192095]
[1747225285300,0.80202058,104120.0,104110.0,0.00292095]
[1747225286399,0.72454849,104120.0,104110.0,0.00292095]
[1747225286900,0.80202058,104120.0,104110.0,0.00292095]
[1747225288403,0.44122058,104120.0,104110.0,0.00292095]
[1747225288603,1.16282058,104120.0,104110.0,0.00292095]
[1747225289195,1.0078764,104120.0,104110.0,0.00292095]
[1747225289395,1.08534849,104120.0,104110.0,0.09896858]
[1747225289598,0.9769764,104120.0,104110.0,0.44653547]
[1747225289905,0.2245764,104120.0,104110.0,0.84733547]
[1747225290104,0.2245764,104120.0,104110.0,1.00933547]
[1747225290702,0.2245764,104120.0,104110.0,2.50933547]
[1747225291308,0.2245764,104120.0,104110.0,2.54996801]
[1747225291700,0.1920764,104120.0,104110.0,2.89601601]
[1747225292298,0.1920764,104120.0,104110.0,2.64601601]
[1747225292799,0.1920764,104120.0,104110.0,2.43186338]
[1747225293003,0.2237764,104120.0,104110.0,2.54996801]
[1747225294909,0.2237764,104120.0,104110.0,2.43186338]
[1747225295093,0.73538103,104120.0,104110.0,1.87896858]
[1747225295299,0.76638103,104120.0,104110.0,1.87896858]
[1747225295605,0.76638103,104120.0,104110.0,1.83896858]
[1747225295807,0.76638103,104120.0,104110.0,0.29326858]
[1747225296009,0.76638103,104120.0,104110.0,0.26096858]
[1747225296311,0.76638103,104120.0,104110.0,0.09896858]
[1747225299927,0.6482764,104120.0,104110.0,0.09896858]
[1747225300230,0.76638103,104120.0,104110.0,0.09896858]
[1747225301215,0.6482764,104120.0,104110.0,0.12906858]
[1747225301420,0.76638103,104120.0,104110.0,0.12906858]
[1747225303835,0.6482764,104120.0,104110.0,0.32116338]
[1747225304023,0.6482764,104120.0,104110.0,0.37656338]
[1747225304331,0.5845764,104120.0,104110.0,0.45466801]
[1747225304520,0.2237764,104120.0,104110.0,0.85546801]
[1747225304923,0.0317,104120.0,104110.0,2.35546801]
[1747225305228,0.0317,104120.0,104110.0,2.51746801]
[1747225305428,0.2237764,104120.0,104110.0,2.51746801]
[1747225307033,0.2237764,104120.0,104110.0,2.66358325]
[1747225310732,0.2880992,104130.0,104120.0,0.1920764]
[1747225310941,0.3188992,104130.0,104120.0,0.43188103]
[1747225311135,0.3188992,104130.0,104120.0,0.59388103]
[1747225311335,0.3188992,104130.0,104120.0,2.28595944]
[1747225311534,0.3188992,104130.0,104120.0,2.18991944]
[1747225312030,0.3198992,104130.0,104120.0,2.18991944]
[1747225312235,0.3198992,104130.0,104120.0,2.55071944]
[1747225313129,0.3208992,104130.0,104120.0,2.55071944]
[1747225314239,0.3208992,104130.0,104120.0,2.56421944]
[1747225317946,0.0328,104130.0,104120.0,2.56421944]
[1747225318136,0.2248579,104130.0,104120.0,2.56421944]
[1747225318449,0.0328,104130.0,104120.0,2.66025944]
[1747225318634,0.7005294,104150.0,104140.0,0.1920395]
[1747225318837,0.7789385,104150.0,104140.0,0.31014413]
[1747225319030,0.6988294,104150.0,104140.0,0.38714413]
[1747225319238,0.6684294,104150.0,104140.0,2.14518254]
[1747225319542,0.3803792,104150.0,104140.0,2.18518254]
[1747225319747,0.35335567,104160.0,104150.0,0.1920211]
[1747225319934,0.27385217,104160.0,104150.0,0.39602573]
[1747225320138,0.27385217,104160.0,104150.0,0.55802573]
[1747225320441,0.27385217,104160.0,104150.0,0.61403648]
[1747225321038,0.27985217,104160.0,104150.0,0.65503648]
[1747225321248,0.27985217,104160.0,104150.0,0.61503648]
[1747225321750,0.27985217,104160.0,104150.0,0.65503648]
[1747225322051,0.31835217,104160.0,104150.0,0.65503648]
[1747225323842,0.31835217,104160.0,104150.0,0.66998969]
[1747225324838,0.31835217,104160.0,104150.0,2.16998969]
[1747225330347,0.31835217,104160.0,104150.0,2.53078969]
[1747225330553,0.36669,104170.0,104160.0,0.1920026]
[1747225330753,0.36669,104170.0,104160.0,0.80590723]
[1747225331254,0.36669,104170.0,104160.0,2.40581335]
[1747225331451,0.36669,104170.0,104160.0,2.52391798]
[1747225331650,0.40499,104170.0,104160.0,2.52491798]
[1747225331952,0.40499,104170.0,104160.0,2.56491798]
[1747225332253,0.40499,104170.0,104160.0,2.44681335]
[1747225332445,0.40499,104170.0,104160.0,2.40681335]
[1747225332653,0.40499,104170.0,104160.0,2.34401335]
[1747225333253,0.40999,104170.0,104160.0,2.18201335]
[1747225333852,0.44249,104170.0,104160.0,2.22201335]
[1747225334052,0.44249,104170.0,104160.0,2.18201335]
[1747225334258,0.44249,104170.0,104160.0,2.34401335]
[1747225335147,0.44249,104170.0,104160.0,2.35863187]
[1747225335349,0.44249,104170.0,104160.0,2.39153187]
[1747225336253,0.44249,104170.0,104160.0,2.19663187]
[1747225336846,0.92139463,104170.0,104160.0,1.61162927]
[1747225337045,0.92139463,104170.0,104160.0,1.59701075]
[1747225337251,0.92139463,104170.0,104160.0,0.09701075]
[1747225339550,0.80329,104170.0,104160.0,0.09701075]
[1747225339852,0.92139463,104170.0,104160.0,0.09701075]
[1747225340054,0.80329,104170.0,104160.0,0.28901335]
[1747225340251,0.80329,104170.0,104160.0,0.32901335]
[1747225340753,0.80329,104170.0,104160.0,0.32091335]
[1747225343751,0.80329,104170.0,104160.0,0.33550227]
[1747225347547,0.44249,104170.0,104160.0,0.33550227]
[1747225347852,0.2374842,104170.0,104160.0,0.97251153]
[1747225348044,0.2374842,104170.0,104160.0,0.8874069]
[1747225348249,0.2374842,104170.0,104160.0,2.5494069]
[1747225348747,0.0455,104170.0,104160.0,2.66751153]
[1747225348947,0.0395,104170.0,104160.0,2.66651153]
[1747225349347,0.007,104170.0,104160.0,2.68001153]
[1747225349551,0.2876811,104180.0,104170.0,0.1919842]
[1747225349749,0.3690304,104190.0,104180.0,0.1919658]
[1747225349953,0.4338304,104190.0,104180.0,0.73487043]
[1747225350160,0.4338304,104190.0,104180.0,0.67207196]
[1747225350453,0.4338304,104190.0,104180.0,2.13207196]
[1747225351048,0.4378304,104190.0,104180.0,2.13207196]
[1747225351556,0.55593503,104190.0,104180.0,1.75800153]
[1747225352057,0.92673503,104190.0,104180.0,1.75800153]
[1747225352355,0.93073503,104190.0,104180.0,1.59600153]
[1747225352854,0.8026304,104190.0,104180.0,1.78796733]
[1747225353356,0.8026304,104190.0,104180.0,1.82036733]
[1747225353654,0.8026304,104190.0,104180.0,1.86036733]
[1747225353854,0.8026304,104190.0,104180.0,1.82036733]
[1747225354053,0.8026304,104190.0,104180.0,1.86036733]
[1747225354254,0.8026304,104190.0,104180.0,1.82036733]
[1747225354557,0.8026304,104190.0,104180.0,1.96957196]
[1747225354752,0.8026304,104190.0,104180.0,2.00197196]
[1747225355156,0.8026304,104190.0,104180.0,2.16397196]
[1747225355356,0.8026304,104190.0,104180.0,2.08586733]
[1747225355861,0.8026304,104190.0,104180.0,2.16397196]
[1747225356249,0.7066504,104190.0,104180.0,2.20397196]
[1747225356851,0.7066504,104190.0,104180.0,2.16397196]
[1747225357654,0.7066504,104190.0,104180.0,2.04586733]
[1747225357858,0.7066504,104190.0,104180.0,2.16397196]
[1747225358551,0.7066504,104190.0,104180.0,2.17397196]
[1747225358954,0.7066504,104190.0,104180.0,2.04586733]
[1747225359147,0.7066504,104190.0,104180.0,2.16397196]
[1747225360060,0.7066504,104190.0,104180.0,2.04586733]
[1747225360364,0.7066504,104190.0,104180.0,2.13157196]
[1747225361257,0.3458504,104190.0,104180.0,2.33037196]
[1747225361463,0.2315473,104190.0,104180.0,2.37037196]
[1747225361961,0.2315473,104190.0,104180.0,1.89146733]
[1747225362151,0.2644473,104190.0,104180.0,1.82036733]
[1747225362661,0.2644473,104190.0,104180.0,1.62840153]
[1747225362662,0.6252473,104190.0,104180.0,1.62840153]
[1747225362858,0.6252473,104190.0,104180.0,1.82036733]
[1747225363365,0.6212473,104190.0,104180.0,1.93847196]
[1747225363656,0.6192473,104190.0,104180.0,1.93847196]
[1747225367463,0.6192473,104190.0,104180.0,1.96917196]
[1747225369458,0.6520473,104190.0,104180.0,1.96917196]
[1747225373664,0.2912473,104190.0,104180.0,1.96917196]
[1747225373971,0.6520473,104190.0,104180.0,1.96917196]
[1747225374670,0.6520473,104190.0,104180.0,1.85106733]
[1747225374967,0.77015193,104190.0,104180.0,1.62840153]
[1747225375272,0.6520473,104190.0,104180.0,1.59600153]
[1747225375463,0.6520473,104190.0,104180.0,1.78796733]
[1747225378570,0.6520473,104190.0,104180.0,1.81846733]
[1747225381970,0.6520473,104190.0,104180.0,1.62650153]
[1747225382172,0.6520473,104190.0,104180.0,1.81846733]
[1747225385773,0.6520473,104190.0,104180.0,1.96747196]
[1747225385973,0.6520473,104190.0,104180.0,1.99917196]
[1747225386175,0.6520473,104190.0,104180.0,2.16117196]
[1747225387077,0.6520473,104190.0,104180.0,1.99917196]
[1747225389280,0.6520473,104190.0,104180.0,1.88106733]
[1747225393285,0.6520473,104190.0,104180.0,1.99917196]
[1747225393493,0.6520473,104190.0,104180.0,1.88106733]
[1747225393693,0.6520473,104190.0,104180.0,0.2850658]
[1747225393994,0.6520473,104190.0,104180.0,0.3810489]
[1747225394698,0.6520473,104190.0,104180.0,1.8810489]
[1747225398296,0.6520473,104190.0,104180.0,1.99915353]
[1747225399296,0.6520473,104190.0,104180.0,1.8810489]
[1747225401288,0.6520473,104190.0,104180.0,1.9584796]
[1747225401488,0.6520473,104190.0,104180.0,1.8810489]
[1747225401692,0.6520473,104190.0,104180.0,1.9584796]
[1747225402389,0.2912473,104190.0,104180.0,1.9584796]
[1747225402694,0.6520473,104190.0,104180.0,1.9584796]
[1747225403898,0.6520473,104190.0,104180.0,1.7360138]
[1747225404100,0.6520473,104190.0,104180.0,1.9279796]
[1747225405100,0.6520473,104190.0,104180.0,2.0899796]
[1747225406200,0.6520473,104190.0,104180.0,1.9279796]
[1747225407096,0.6520473,104190.0,104180.0,2.1224796]
[1747225407801,0.6520473,104190.0,104180.0,2.1624796]
[1747225408004,0.6520473,104190.0,104180.0,2.1224796]
[1747225408698,0.5863473,104190.0,104180.0,2.1624796]
[1747225410108,0.6171473,104190.0,104180.0,2.1624796]
[1747225410602,0.6171473,104190.0,104180.0,2.1224796]
[1747225410803,0.6498473,104190.0,104180.0,2.1224796]
[1747225411598,0.6498473,104190.0,104180.0,2.1624796]
[1747225411799,0.6498473,104190.0,104180.0,2.1224796]
[1747225412000,0.6498473,104190.0,104180.0,2.1624796]
[1747225412202,0.6498473,104190.0,104180.0,2.1224796]
[1747225412704,0.6498473,104190.0,104180.0,2.1624796]
[1747225412905,0.6498473,104190.0,104180.0,2.1224796]
[1747225413400,0.6498473,104190.0,104180.0,2.1624796]
[1747225413602,0.6498473,104190.0,104180.0,2.1224796]